[Event "Titled Tuesday Blitz April 25 Late 2023"]
[White "Smirnov, Pavel"]
[Black "Kollars, Dmitrij"]
[WhiteFideId "4123425"]
[BlackFideId "12909572"]
[WhiteElo "2519"]
[BlackElo "2584"]
[Result "0-1"]
[Round "06"]
[TimeControl "180+2"]
[Date "2023.04.25"]
[WhiteClock "0:00:02"]
[BlackClock "0:00:12"]

1. d4 {[%clk 0:03:00]}  Nf6 {[%clk 0:02:58]} 2. c4 {[%clk 0:03:01]}  e6 {[%clk 0:02:58]} 3. g3 {[%clk 0:03:01]}  d5 {[%clk 0:02:57]} 4. Nf3 {[%clk 0:03:00]}  c6 {[%clk 0:02:45]} 5. Bg2 {[%clk 0:02:58]}  dxc4 {[%clk 0:02:45]} 6. O-O {[%clk 0:02:56]}  b5 {[%clk 0:02:43]} 7. Ne5 {[%clk 0:02:56]}  Bb7 {[%clk 0:02:40]} 8. a4 {[%clk 0:02:56]}  Nd5 {[%clk 0:02:24]} 9. e4 {[%clk 0:02:46]}  Nb4 {[%clk 0:02:22]} 10. Nc3 {[%clk 0:02:39]}  a6 {[%clk 0:02:16]} 11. Qh5 {[%clk 0:02:35]}  g6 {[%clk 0:01:57]} 12. Nxg6 {[%clk 0:02:33]}  fxg6 {[%clk 0:01:14]} 13. Qe5 {[%clk 0:02:33]}  Nd7 {[%clk 0:01:15]} 14. Qxh8 {[%clk 0:02:32]}  Qe7 {[%clk 0:01:16]} 15. h4 {[%clk 0:02:24]}  Qg7 {[%clk 0:01:11]} 16. Qxg7 {[%clk 0:02:22]}  Bxg7 {[%clk 0:01:12]} 17. Be3 {[%clk 0:02:22]}  Nc2 {[%clk 0:00:53]} 18. Rad1 {[%clk 0:02:21]}  O-O-O {[%clk 0:00:50]} 19. Bg5 {[%clk 0:02:08]}  Nxd4 {[%clk 0:00:28]} 20. Bxd8 {[%clk 0:02:06]}  Kxd8 {[%clk 0:00:29]} 21. e5 {[%clk 0:02:02]}  Bxe5 {[%clk 0:00:24]} 22. axb5 {[%clk 0:02:02]}  axb5 {[%clk 0:00:24]} 23. Rfe1 {[%clk 0:01:59]}  Bg7 {[%clk 0:00:24]} 24. Ne4 {[%clk 0:01:44]}  Ke7 {[%clk 0:00:24]} 25. Ng5 {[%clk 0:01:33]}  h6 {[%clk 0:00:21]} 26. Rxd4 {[%clk 0:01:30]}  Bxd4 {[%clk 0:00:21]} 27. Nxe6 {[%clk 0:01:21]}  Be5 {[%clk 0:00:22]} 28. Bh3 {[%clk 0:01:10]}  Kf6 {[%clk 0:00:19]} 29. Nd8 {[%clk 0:01:08]}  Nc5 {[%clk 0:00:18]} 30. Nxb7 {[%clk 0:00:58]}  Nxb7 {[%clk 0:00:19]} 31. Re2 {[%clk 0:00:43]}  Na5 {[%clk 0:00:15]} 32. Kf1 {[%clk 0:00:37]}  b4 {[%clk 0:00:15]} 33. f4 {[%clk 0:00:37]}  Bd4 {[%clk 0:00:14]} 34. g4 {[%clk 0:00:29]}  b3 {[%clk 0:00:11]} 35. g5+ {[%clk 0:00:28]}  hxg5 {[%clk 0:00:12]} 36. hxg5+ {[%clk 0:00:19]}  Kg7 {[%clk 0:00:13]} 37. Be6 {[%clk 0:00:15]}  c3 {[%clk 0:00:12]} 38. bxc3 {[%clk 0:00:14]}  Bxc3 {[%clk 0:00:13]} 39. f5 {[%clk 0:00:14]}  gxf5 {[%clk 0:00:11]} 40. Bxf5 {[%clk 0:00:14]}  c5 {[%clk 0:00:12]} 41. Re7+ {[%clk 0:00:12]}  Kf8 {[%clk 0:00:12]} 42. Rc7 {[%clk 0:00:12]}  Bd4 {[%clk 0:00:10]} 43. g6 {[%clk 0:00:12]}  Nc4 {[%clk 0:00:11]} 44. Rf7+ {[%clk 0:00:11]}  Ke8 {[%clk 0:00:10]} 45. Bd7+ {[%clk 0:00:10]}  Kd8 {[%clk 0:00:11]} 46. Ba4 {[%clk 0:00:06]}  b2 {[%clk 0:00:10]} 47. Rb7 {[%clk 0:00:06]}  b1=Q+ {[%clk 0:00:08]} 48. Rxb1 {[%clk 0:00:05]}  Nd2+ {[%clk 0:00:09]} 49. Ke2 {[%clk 0:00:05]}  Nxb1 {[%clk 0:00:10]} 50. Kd3 {[%clk 0:00:06]}  Nc3 {[%clk 0:00:09]} 51. Bb3 {[%clk 0:00:06]}  Kc7 {[%clk 0:00:09]} 52. Kc4 {[%clk 0:00:05]}  Kd6 {[%clk 0:00:09]} 53. Bc2 {[%clk 0:00:05]}  Nd5 {[%clk 0:00:09]} 54. Be4 {[%clk 0:00:03]}  Nf4 {[%clk 0:00:09]} 55. Bf5 {[%clk 0:00:02]}  Nh5 {[%clk 0:00:09]} 56. Bd3 {[%clk 0:00:02]}  Ng7 {[%clk 0:00:10]} 57. Be4 {[%clk 0:00:02]}  Ke5 {[%clk 0:00:11]} 58. Bd3 {[%clk 0:00:03]}  Kf6 {[%clk 0:00:12]} 59. Be4 {[%clk 0:00:03]}  Ne6 {[%clk 0:00:12]} 60. Bd3 {[%clk 0:00:03]}  Nf4 {[%clk 0:00:12]} 61. Be4 {[%clk 0:00:03]}  Nxg6 {[%clk 0:00:12]} 62. Kd3 {[%clk 0:00:03]}  Ne5+ {[%clk 0:00:13]} 63. Kc2 {[%clk 0:00:04]}  Ke6 {[%clk 0:00:14]} 64. Bb7 {[%clk 0:00:04]}  Kd6 {[%clk 0:00:15]} 65. Ba6 {[%clk 0:00:04]}  Kc7 {[%clk 0:00:16]} 66. Be2 {[%clk 0:00:04]}  Kb6 {[%clk 0:00:17]} 67. Bf1 {[%clk 0:00:05]}  Ka5 {[%clk 0:00:17]} 68. Be2 {[%clk 0:00:05]}  Kb4 {[%clk 0:00:18]} 69. Bf1 {[%clk 0:00:05]}  Ka4 {[%clk 0:00:19]} 70. Be2 {[%clk 0:00:06]}  Ka5 {[%clk 0:00:20]} 71. Bf1 {[%clk 0:00:06]}  Kb6 {[%clk 0:00:21]} 72. Be2 {[%clk 0:00:07]}  Kc7 {[%clk 0:00:22]} 73. Bf1 {[%clk 0:00:07]}  Kd6 {[%clk 0:00:23]} 74. Be2 {[%clk 0:00:08]}  Ke7 {[%clk 0:00:24]} 75. Bf1 {[%clk 0:00:08]}  Kf6 {[%clk 0:00:25]} 76. Be2 {[%clk 0:00:09]}  Kf5 {[%clk 0:00:26]} 77. Bf1 {[%clk 0:00:09]}  Kf4 {[%clk 0:00:26]} 78. Ba6 {[%clk 0:00:10]}  Ke3 {[%clk 0:00:27]} 79. Bb5 {[%clk 0:00:10]}  Nf7 {[%clk 0:00:28]} 80. Bc4 {[%clk 0:00:10]}  Nd6 {[%clk 0:00:27]} 81. Ba6 {[%clk 0:00:10]}  Be5 {[%clk 0:00:28]} 82. Bf1 {[%clk 0:00:09]}  Kd4 {[%clk 0:00:29]} 83. Ba6 {[%clk 0:00:09]}  Nc4 {[%clk 0:00:29]} 84. Kb3 {[%clk 0:00:08]}  Ne3 {[%clk 0:00:29]} 85. Bb5 {[%clk 0:00:07]}  Bd6 {[%clk 0:00:28]} 86. Ba6 {[%clk 0:00:07]}  c4+ {[%clk 0:00:28]} 87. Bxc4 {[%clk 0:00:07]}  Nxc4 {[%clk 0:00:28]} 88. Kc2 {[%clk 0:00:07]}  Ne3+ {[%clk 0:00:25]} 89. Kb3 {[%clk 0:00:07]}  Bc5 {[%clk 0:00:19]} 90. Ka4 {[%clk 0:00:07]}  Kc4 {[%clk 0:00:17]} 91. Ka5 {[%clk 0:00:07]}  Nd1 {[%clk 0:00:16]} 92. Ka6 {[%clk 0:00:07]}  Kd5 {[%clk 0:00:15]} 93. Kb7 {[%clk 0:00:07]}  Nc3 {[%clk 0:00:15]} 94. Kc7 {[%clk 0:00:07]}  Bd6+ {[%clk 0:00:16]} 95. Kb6 {[%clk 0:00:06]}  Ne4 {[%clk 0:00:16]} 96. Kb7 {[%clk 0:00:05]}  Nf6 {[%clk 0:00:15]} 97. Kb6 {[%clk 0:00:05]}  Bc5+ {[%clk 0:00:13]} 98. Kb7 {[%clk 0:00:05]}  Kd6 {[%clk 0:00:14]} 99. Kc8 {[%clk 0:00:04]}  Kc6 {[%clk 0:00:13]} 100. Kb8 {[%clk 0:00:04]}  Ne4 {[%clk 0:00:12]} 101. Ka8 {[%clk 0:00:04]}  Nc3 {[%clk 0:00:11]} 102. Kb8 {[%clk 0:00:02]}  Nd5 {[%clk 0:00:12]} 0-1


[Site "https://www.chess.com"]

[Event "Titled Tuesday Blitz April 25 Late 2023"]
[White "Weetik, Vjacheslav"]
[Black "Svane, Frederik"]
[WhiteFideId "4153472"]
[BlackFideId "12923044"]
[WhiteElo "2469"]
[BlackElo "2502"]
[Result "0-1"]
[Round "06"]
[TimeControl "180+2"]
[Date "2023.04.25"]
[WhiteClock "0:00:02"]
[BlackClock "0:00:18"]

1. d4 {[%clk 0:02:59]}  Nf6 {[%clk 0:03:00]} 2. Bf4 {[%clk 0:03:00]}  b6 {[%clk 0:03:00]} 3. Nf3 {[%clk 0:03:00]}  Bb7 {[%clk 0:03:00]} 4. e3 {[%clk 0:03:00]}  Nh5 {[%clk 0:03:00]} 5. Bg5 {[%clk 0:02:56]}  h6 {[%clk 0:03:00]} 6. Bh4 {[%clk 0:02:55]}  g5 {[%clk 0:03:00]} 7. Nfd2 {[%clk 0:02:41]}  Nf4 {[%clk 0:03:00]} 8. exf4 {[%clk 0:02:35]}  gxh4 {[%clk 0:03:00]} 9. Nf3 {[%clk 0:02:27]}  c5 {[%clk 0:02:51]} 10. Nxh4 {[%clk 0:02:18]}  e6 {[%clk 0:02:50]} 11. Nf3 {[%clk 0:02:16]}  Bg7 {[%clk 0:02:50]} 12. dxc5 {[%clk 0:01:59]}  Bxb2 {[%clk 0:02:39]} 13. Nbd2 {[%clk 0:01:59]}  Bxa1 {[%clk 0:02:36]} 14. Qxa1 {[%clk 0:01:59]}  Rg8 {[%clk 0:02:37]} 15. Nc4 {[%clk 0:01:25]}  Bxf3 {[%clk 0:02:33]} 16. gxf3 {[%clk 0:01:16]}  bxc5 {[%clk 0:02:32]} 17. Qe5 {[%clk 0:00:51]}  d5 {[%clk 0:02:06]} 18. Nd6+ {[%clk 0:00:36]}  Kf8 {[%clk 0:02:05]} 19. Bb5 {[%clk 0:00:20]}  a6 {[%clk 0:02:03]} 20. Be8 {[%clk 0:00:15]}  Ra7 {[%clk 0:01:31]} 21. f5 {[%clk 0:00:12]}  f6 {[%clk 0:01:12]} 22. Qf4 {[%clk 0:00:09]}  e5 {[%clk 0:01:12]} 23. Qxh6+ {[%clk 0:00:10]}  Rag7 {[%clk 0:01:10]} 24. Bf7 {[%clk 0:00:02]}  Qxd6 {[%clk 0:01:07]} 25. Bxg8 {[%clk 0:00:03]}  Kxg8 {[%clk 0:01:07]} 26. Ke2 {[%clk 0:00:03]}  Nc6 {[%clk 0:01:06]} 27. Rb1 {[%clk 0:00:03]}  Nd4+ {[%clk 0:01:06]} 28. Kf1 {[%clk 0:00:03]}  Nxf3 {[%clk 0:00:18]} 29. Qh5 {[%clk 0:00:04]}  Rg1+ {[%clk 0:00:17]} 30. Ke2 {[%clk 0:00:04]}  Rxb1 {[%clk 0:00:18]} 31. Qe8+ {[%clk 0:00:04]}  Kg7 {[%clk 0:00:17]} 32. Qg6+ {[%clk 0:00:03]}  Kf8 {[%clk 0:00:17]} 33. Qh6+ {[%clk 0:00:02]}  Ke8 {[%clk 0:00:17]} 34. Qh8+ {[%clk 0:00:02]}  Kd7 {[%clk 0:00:17]} 35. Qg7+ {[%clk 0:00:02]}  Kc6 {[%clk 0:00:18]} 0-1


[Site "https://www.chess.com"]

[Event "Titled Tuesday Blitz April 25 Late 2023"]
[White "Bryakin, Mikhail"]
[Black "Van Foreest, Jorden"]
[WhiteFideId "4165314"]
[BlackFideId "1039784"]
[WhiteElo "2447"]
[BlackElo "2633"]
[Result "1/2-1/2"]
[Round "06"]
[TimeControl "180+2"]
[Date "2023.04.25"]
[WhiteClock "0:00:06"]
[BlackClock "0:00:39"]

1. Nf3 {[%clk 0:03:00]}  Nf6 {[%clk 0:02:59]} 2. b3 {[%clk 0:02:59]}  d5 {[%clk 0:02:58]} 3. Bb2 {[%clk 0:02:59]}  Bf5 {[%clk 0:02:57]} 4. e3 {[%clk 0:02:58]}  e6 {[%clk 0:02:57]} 5. c4 {[%clk 0:02:44]}  c6 {[%clk 0:02:57]} 6. d4 {[%clk 0:02:38]}  Bb4+ {[%clk 0:02:54]} 7. Nbd2 {[%clk 0:02:38]}  h6 {[%clk 0:02:53]} 8. a3 {[%clk 0:02:37]}  Be7 {[%clk 0:02:52]} 9. Be2 {[%clk 0:02:35]}  a5 {[%clk 0:02:52]} 10. O-O {[%clk 0:02:27]}  O-O {[%clk 0:02:53]} 11. Ne5 {[%clk 0:02:26]}  Nbd7 {[%clk 0:02:53]} 12. f4 {[%clk 0:02:18]}  Bh7 {[%clk 0:02:42]} 13. Bf3 {[%clk 0:02:13]}  Rc8 {[%clk 0:02:39]} 14. Re1 {[%clk 0:02:13]}  b5 {[%clk 0:02:35]} 15. c5 {[%clk 0:01:55]}  Ne4 {[%clk 0:02:09]} 16. b4 {[%clk 0:01:11]}  Ndf6 {[%clk 0:02:03]} 17. Nb3 {[%clk 0:01:05]}  a4 {[%clk 0:01:58]} 18. Nc1 {[%clk 0:01:05]}  Ne8 {[%clk 0:01:55]} 19. Ne2 {[%clk 0:01:03]}  f6 {[%clk 0:01:54]} 20. Nd3 {[%clk 0:01:03]}  g5 {[%clk 0:01:49]} 21. Nc3 {[%clk 0:01:02]}  Ng7 {[%clk 0:01:49]} 22. Nf2 {[%clk 0:01:02]}  Nxc3 {[%clk 0:01:47]} 23. Bxc3 {[%clk 0:01:02]}  f5 {[%clk 0:01:47]} 24. g3 {[%clk 0:01:01]}  Ne8 {[%clk 0:01:39]} 25. Nd3 {[%clk 0:01:01]}  Nf6 {[%clk 0:01:36]} 26. Ne5 {[%clk 0:01:01]}  Nd7 {[%clk 0:01:36]} 27. Kf2 {[%clk 0:00:58]}  Nxe5 {[%clk 0:01:36]} 28. dxe5 {[%clk 0:00:59]}  Bg6 {[%clk 0:01:34]} 29. Bd4 {[%clk 0:00:56]}  Qe8 {[%clk 0:01:33]} 30. Rh1 {[%clk 0:00:54]}  Kh7 {[%clk 0:01:19]} 31. h4 {[%clk 0:00:50]}  gxh4 {[%clk 0:01:15]} 32. gxh4 {[%clk 0:00:51]}  Rg8 {[%clk 0:01:13]} 33. h5 {[%clk 0:00:45]}  Bf7 {[%clk 0:01:13]} 34. Qe2 {[%clk 0:00:45]}  Rg7 {[%clk 0:01:06]} 35. Rag1 {[%clk 0:00:46]}  Rxg1 {[%clk 0:01:02]} 36. Rxg1 {[%clk 0:00:45]}  Qd7 {[%clk 0:01:01]} 37. Kf1 {[%clk 0:00:44]}  Rg8 {[%clk 0:00:59]} 38. Rxg8 {[%clk 0:00:42]}  Bxg8 {[%clk 0:01:00]} 39. Qg2 {[%clk 0:00:37]}  Bf7 {[%clk 0:01:00]} 40. Qh3 {[%clk 0:00:37]}  Qe8 {[%clk 0:01:00]} 41. Kf2 {[%clk 0:00:36]}  Qd8 {[%clk 0:01:01]} 42. Kf1 {[%clk 0:00:36]}  Bh4 {[%clk 0:01:01]} 43. Bc3 {[%clk 0:00:35]}  Be7 {[%clk 0:01:00]} 44. Bd4 {[%clk 0:00:35]}  Kg7 {[%clk 0:01:00]} 45. Bc3 {[%clk 0:00:35]}  Qh8 {[%clk 0:00:59]} 46. Bd4 {[%clk 0:00:35]}  Kf8 {[%clk 0:01:00]} 47. Bc3 {[%clk 0:00:34]}  Ke8 {[%clk 0:01:01]} 48. Bd4 {[%clk 0:00:34]}  Kd7 {[%clk 0:01:01]} 49. Be2 {[%clk 0:00:35]}  Qh7 {[%clk 0:01:02]} 50. Ke1 {[%clk 0:00:30]}  Qh8 {[%clk 0:01:00]} 51. Kd2 {[%clk 0:00:30]}  Qg7 {[%clk 0:01:00]} 52. Qf1 {[%clk 0:00:30]}  Qg3 {[%clk 0:01:00]} 53. Bxb5 {[%clk 0:00:26]}  Bxh5 {[%clk 0:00:49]} 54. Bxc6+ {[%clk 0:00:18]}  Kxc6 {[%clk 0:00:49]} 55. Qa6+ {[%clk 0:00:19]}  Kd7 {[%clk 0:00:49]} 56. Qxa4+ {[%clk 0:00:18]}  Kd8 {[%clk 0:00:48]} 57. Qa8+ {[%clk 0:00:17]}  Kc7 {[%clk 0:00:47]} 58. Qa7+ {[%clk 0:00:17]}  Kd8 {[%clk 0:00:44]} 59. Qb8+ {[%clk 0:00:15]}  Kd7 {[%clk 0:00:43]} 60. Qb5+ {[%clk 0:00:12]}  Kc7 {[%clk 0:00:44]} 61. Qb6+ {[%clk 0:00:12]}  Kc8 {[%clk 0:00:44]} 62. Qc6+ {[%clk 0:00:10]}  Kd8 {[%clk 0:00:44]} 63. Qa8+ {[%clk 0:00:09]}  Kc7 {[%clk 0:00:42]} 64. Qa7+ {[%clk 0:00:08]}  Kc8 {[%clk 0:00:41]} 65. Qa8+ {[%clk 0:00:06]}  Kc7 {[%clk 0:00:39]} 1/2-1/2


[Site "https://www.chess.com"]

[Event "Titled Tuesday Blitz April 25 Late 2023"]
[White "Schmakel, Sam"]
[Black "Zhigalko, Sergei"]
[WhiteFideId "2039311"]
[BlackFideId "13502956"]
[WhiteElo "2356"]
[BlackElo "2626"]
[Result "0-1"]
[Round "06"]
[TimeControl "180+2"]
[Date "2023.04.25"]
[WhiteClock "0:00:02"]
[BlackClock "0:00:38"]

1. d4 {[%clk 0:03:00]}  Nf6 {[%clk 0:03:00]} 2. c4 {[%clk 0:03:00]}  e6 {[%clk 0:03:00]} 3. Nf3 {[%clk 0:03:01]}  b6 {[%clk 0:03:00]} 4. g3 {[%clk 0:03:00]}  Ba6 {[%clk 0:03:01]} 5. Qa4 {[%clk 0:02:58]}  Bb7 {[%clk 0:03:01]} 6. Bg2 {[%clk 0:02:58]}  c5 {[%clk 0:03:01]} 7. dxc5 {[%clk 0:02:54]}  bxc5 {[%clk 0:03:02]} 8. O-O {[%clk 0:02:54]}  Be7 {[%clk 0:03:02]} 9. Nc3 {[%clk 0:02:54]}  O-O {[%clk 0:03:02]} 10. Bf4 {[%clk 0:02:49]}  Qb6 {[%clk 0:03:02]} 11. Rfd1 {[%clk 0:02:38]}  d6 {[%clk 0:03:02]} 12. Qb3 {[%clk 0:02:18]}  Rd8 {[%clk 0:02:54]} 13. Rd2 {[%clk 0:02:09]}  Ne8 {[%clk 0:02:14]} 14. Rad1 {[%clk 0:01:54]}  Nd7 {[%clk 0:02:07]} 15. Qc2 {[%clk 0:01:37]}  h6 {[%clk 0:02:03]} 16. a3 {[%clk 0:01:15]}  Bc6 {[%clk 0:01:58]} 17. e4 {[%clk 0:00:57]}  Qb7 {[%clk 0:01:55]} 18. Nd5 {[%clk 0:00:47]}  Bf8 {[%clk 0:01:47]} 19. b4 {[%clk 0:00:43]}  a6 {[%clk 0:01:39]} 20. bxc5 {[%clk 0:00:33]}  Nxc5 {[%clk 0:01:38]} 21. Rb1 {[%clk 0:00:33]}  Qa7 {[%clk 0:01:33]} 22. Nc3 {[%clk 0:00:27]}  Rac8 {[%clk 0:01:33]} 23. e5 {[%clk 0:00:22]}  Qa8 {[%clk 0:01:32]} 24. Qd1 {[%clk 0:00:20]}  dxe5 {[%clk 0:01:29]} 25. Be3 {[%clk 0:00:17]}  Rxd2 {[%clk 0:01:25]} 26. Bxd2 {[%clk 0:00:18]}  Rd8 {[%clk 0:01:25]} 27. Ne1 {[%clk 0:00:15]}  Bxg2 {[%clk 0:01:21]} 28. Nxg2 {[%clk 0:00:16]}  Ne4 {[%clk 0:01:22]} 29. Nxe4 {[%clk 0:00:10]}  Qxe4 {[%clk 0:01:23]} 30. Qe1 {[%clk 0:00:06]}  Qxc4 {[%clk 0:01:20]} 31. Bb4 {[%clk 0:00:05]}  Bxb4 {[%clk 0:01:13]} 32. axb4 {[%clk 0:00:05]}  Qb5 {[%clk 0:01:06]} 33. Rc1 {[%clk 0:00:05]}  Rb8 {[%clk 0:00:58]} 34. Nh4 {[%clk 0:00:02]}  Nf6 {[%clk 0:00:50]} 35. Qe3 {[%clk 0:00:01]}  e4 {[%clk 0:00:48]} 36. Qf4 {[%clk 0:00:01]}  Qxb4 {[%clk 0:00:45]} 37. Ng2 {[%clk 0:00:02]}  Qb2 {[%clk 0:00:42]} 38. g4 {[%clk 0:00:02]}  Nd5 {[%clk 0:00:38]} 0-1


[Site "https://www.chess.com"]

[Event "Titled Tuesday Blitz April 25 Late 2023"]
[White "Hansen, Eric"]
[Black "Bronstein, Or"]
[WhiteFideId "2606771"]
[BlackFideId "2815770"]
[WhiteElo "2561"]
[BlackElo "2356"]
[Result "0-1"]
[Round "06"]
[TimeControl "180+2"]
[Date "2023.04.25"]
[WhiteClock "0:00:01"]
[BlackClock "0:00:38"]

1. b3 {[%clk 0:03:00]}  d5 {[%clk 0:02:54]} 2. Bb2 {[%clk 0:03:01]}  Bg4 {[%clk 0:02:54]} 3. h3 {[%clk 0:02:39]}  Bh5 {[%clk 0:02:54]} 4. g4 {[%clk 0:02:38]}  Bg6 {[%clk 0:02:55]} 5. Nf3 {[%clk 0:02:38]}  Nc6 {[%clk 0:02:51]} 6. d3 {[%clk 0:02:32]}  f6 {[%clk 0:02:48]} 7. a3 {[%clk 0:02:27]}  e5 {[%clk 0:02:47]} 8. Bg2 {[%clk 0:02:28]}  a5 {[%clk 0:02:44]} 9. Nbd2 {[%clk 0:02:27]}  Bc5 {[%clk 0:02:40]} 10. e3 {[%clk 0:02:27]}  Nge7 {[%clk 0:02:33]} 11. Qe2 {[%clk 0:02:27]}  O-O {[%clk 0:02:32]} 12. g5 {[%clk 0:02:22]}  Bh5 {[%clk 0:02:23]} 13. gxf6 {[%clk 0:02:20]}  Rxf6 {[%clk 0:02:23]} 14. Qf1 {[%clk 0:02:20]}  Ng6 {[%clk 0:02:15]} 15. O-O-O {[%clk 0:01:34]}  Qe7 {[%clk 0:02:14]} 16. d4 {[%clk 0:01:22]}  Bxa3 {[%clk 0:02:11]} 17. Qb5 {[%clk 0:01:22]}  a4 {[%clk 0:02:04]} 18. dxe5 {[%clk 0:01:16]}  Bxb2+ {[%clk 0:01:45]} 19. Kxb2 {[%clk 0:01:15]}  Ngxe5 {[%clk 0:01:46]} 20. Qxd5+ {[%clk 0:00:36]}  Bf7 {[%clk 0:01:45]} 21. Qe4 {[%clk 0:00:37]}  axb3 {[%clk 0:01:41]} 22. Ra1 {[%clk 0:00:34]}  Ra2+ {[%clk 0:01:36]} 23. Rxa2 {[%clk 0:00:31]}  bxa2 {[%clk 0:01:37]} 24. Nxe5 {[%clk 0:00:26]}  Nxe5 {[%clk 0:01:37]} 25. f4 {[%clk 0:00:22]}  Rb6+ {[%clk 0:01:34]} 26. Ka1 {[%clk 0:00:22]}  Qa3 {[%clk 0:01:07]} 27. Nb3 {[%clk 0:00:13]}  Nc4 {[%clk 0:00:57]} 28. Qd4 {[%clk 0:00:13]}  Rd6 {[%clk 0:00:51]} 29. Qc3 {[%clk 0:00:13]}  b5 {[%clk 0:00:47]} 30. Bd5 {[%clk 0:00:02]}  Rxd5 {[%clk 0:00:39]} 31. Rg1 {[%clk 0:00:01]}  g6 {[%clk 0:00:38]} 0-1


[Site "https://www.chess.com"]

[Event "Titled Tuesday Blitz April 25 Late 2023"]
[White "Melkumyan, Hrant"]
[Black "Prohaszka, Peter"]
[WhiteFideId "13302485"]
[BlackFideId "726265"]
[WhiteElo "2604"]
[BlackElo "2626"]
[Result "1-0"]
[Round "06"]
[TimeControl "180+2"]
[Date "2023.04.25"]
[WhiteClock "0:01:32"]
[BlackClock "0:00:02"]

1. d4 {[%clk 0:03:00]}  d5 {[%clk 0:02:56]} 2. c4 {[%clk 0:03:00]}  e6 {[%clk 0:02:54]} 3. Nc3 {[%clk 0:03:01]}  a6 {[%clk 0:02:54]} 4. cxd5 {[%clk 0:02:57]}  exd5 {[%clk 0:02:54]} 5. Nf3 {[%clk 0:02:58]}  Nf6 {[%clk 0:02:54]} 6. Bg5 {[%clk 0:02:58]}  Be6 {[%clk 0:02:53]} 7. Qb3 {[%clk 0:02:56]}  Nbd7 {[%clk 0:02:26]} 8. e3 {[%clk 0:02:52]}  Qc8 {[%clk 0:02:23]} 9. Rc1 {[%clk 0:02:48]}  c6 {[%clk 0:02:23]} 10. Bd3 {[%clk 0:02:45]}  Bd6 {[%clk 0:02:22]} 11. Bf4 {[%clk 0:02:40]}  Qc7 {[%clk 0:02:15]} 12. Ne2 {[%clk 0:02:41]}  Rb8 {[%clk 0:01:55]} 13. h3 {[%clk 0:02:36]}  O-O {[%clk 0:01:55]} 14. O-O {[%clk 0:02:36]}  Nh5 {[%clk 0:01:38]} 15. Bxd6 {[%clk 0:02:33]}  Qxd6 {[%clk 0:01:39]} 16. a3 {[%clk 0:02:31]}  h6 {[%clk 0:01:36]} 17. Qb4 {[%clk 0:02:30]}  Qc7 {[%clk 0:01:31]} 18. Qd2 {[%clk 0:02:28]}  Rbe8 {[%clk 0:01:17]} 19. b4 {[%clk 0:02:28]}  f5 {[%clk 0:01:15]} 20. Nf4 {[%clk 0:02:25]}  Bf7 {[%clk 0:00:31]} 21. Bxf5 {[%clk 0:02:13]}  Nxf4 {[%clk 0:00:30]} 22. exf4 {[%clk 0:02:14]}  Bh5 {[%clk 0:00:30]} 23. Bxd7 {[%clk 0:02:14]}  Qxd7 {[%clk 0:00:30]} 24. Ne5 {[%clk 0:02:14]}  Qe7 {[%clk 0:00:24]} 25. Rc3 {[%clk 0:02:03]}  Qh4 {[%clk 0:00:20]} 26. g4 {[%clk 0:02:01]}  Bf7 {[%clk 0:00:16]} 27. Re1 {[%clk 0:02:02]}  Qf6 {[%clk 0:00:13]} 28. f5 {[%clk 0:01:59]}  Qd6 {[%clk 0:00:12]} 29. Rce3 {[%clk 0:01:57]}  Rd8 {[%clk 0:00:12]} 30. Kg2 {[%clk 0:01:55]}  Be8 {[%clk 0:00:10]} 31. f4 {[%clk 0:01:55]}  a5 {[%clk 0:00:10]} 32. Nd3 {[%clk 0:01:55]}  axb4 {[%clk 0:00:10]} 33. axb4 {[%clk 0:01:53]}  Qf6 {[%clk 0:00:10]} 34. Re5 {[%clk 0:01:51]}  Ra8 {[%clk 0:00:10]} 35. Nc5 {[%clk 0:01:51]}  b6 {[%clk 0:00:08]} 36. Ne6 {[%clk 0:01:51]}  Rf7 {[%clk 0:00:08]} 37. Nxg7 {[%clk 0:01:46]}  Kxg7 {[%clk 0:00:08]} 38. Rxe8 {[%clk 0:01:46]}  Rfa7 {[%clk 0:00:06]} 39. Rxa8 {[%clk 0:01:43]}  Rxa8 {[%clk 0:00:07]} 40. Re6 {[%clk 0:01:43]}  Qf7 {[%clk 0:00:07]} 41. Qe2 {[%clk 0:01:42]}  Ra7 {[%clk 0:00:04]} 42. f6+ {[%clk 0:01:40]}  Kf8 {[%clk 0:00:03]} 43. Qe5 {[%clk 0:01:39]}  Qd7 {[%clk 0:00:01]} 44. Re7 {[%clk 0:01:34]}  Ra2+ {[%clk 0:00:01]} 45. Kg3 {[%clk 0:01:34]}  Qd8 {[%clk 0:00:01]} 46. Qe6 {[%clk 0:01:32]}  Ra3+ {[%clk 0:00:02]} 47. Kh4 {[%clk 0:01:32]} 1-0


[Site "https://www.chess.com"]

[Event "Titled Tuesday Blitz April 25 Late 2023"]
[White "Makaraci, Tunahan"]
[Black "Chigaev, Maksim"]
[WhiteFideId "6356559"]
[BlackFideId "4108116"]
[WhiteElo "2160"]
[BlackElo "2547"]
[Result "1-0"]
[Round "06"]
[TimeControl "180+2"]
[Date "2023.04.25"]
[WhiteClock "0:01:11"]
[BlackClock "0:00:29"]

1. e4 {[%clk 0:03:00]}  c5 {[%clk 0:03:00]} 2. c3 {[%clk 0:03:01]}  d5 {[%clk 0:02:59]} 3. exd5 {[%clk 0:03:01]}  Nf6 {[%clk 0:03:00]} 4. d4 {[%clk 0:03:00]}  Nxd5 {[%clk 0:02:54]} 5. Nf3 {[%clk 0:03:00]}  cxd4 {[%clk 0:02:54]} 6. cxd4 {[%clk 0:03:01]}  Nc6 {[%clk 0:02:54]} 7. Nc3 {[%clk 0:03:00]}  g6 {[%clk 0:02:50]} 8. Bc4 {[%clk 0:02:57]}  Nb6 {[%clk 0:02:47]} 9. Bb3 {[%clk 0:02:55]}  Bg7 {[%clk 0:02:47]} 10. d5 {[%clk 0:02:55]}  Na5 {[%clk 0:02:48]} 11. O-O {[%clk 0:02:55]}  O-O {[%clk 0:02:48]} 12. Re1 {[%clk 0:02:55]}  Nxb3 {[%clk 0:02:31]} 13. axb3 {[%clk 0:02:53]}  e6 {[%clk 0:02:19]} 14. d6 {[%clk 0:02:50]}  Bd7 {[%clk 0:02:18]} 15. Bf4 {[%clk 0:02:41]}  f6 {[%clk 0:02:14]} 16. h4 {[%clk 0:02:32]}  a6 {[%clk 0:02:06]} 17. Qd2 {[%clk 0:02:20]}  e5 {[%clk 0:01:59]} 18. Be3 {[%clk 0:02:06]}  Be6 {[%clk 0:01:52]} 19. Bxb6 {[%clk 0:01:58]}  Qxb6 {[%clk 0:01:51]} 20. Nd5 {[%clk 0:01:59]}  Bxd5 {[%clk 0:00:58]} 21. Qxd5+ {[%clk 0:01:56]}  Kh8 {[%clk 0:00:59]} 22. d7 {[%clk 0:01:43]}  Rad8 {[%clk 0:00:58]} 23. Red1 {[%clk 0:01:42]}  h5 {[%clk 0:00:39]} 24. Ra4 {[%clk 0:01:26]}  Kh7 {[%clk 0:00:35]} 25. g4 {[%clk 0:01:22]}  hxg4 {[%clk 0:00:30]} 26. Rxg4 {[%clk 0:01:21]}  Qc6 {[%clk 0:00:29]} 27. Qxc6 {[%clk 0:01:11]}  b6 {[%clk 0:00:29]} 1-0


[Site "https://www.chess.com"]